bitfinex/quotes_SOLUSD_20241113
["timestamp","ask_amount","ask_price","bid_price","bid_amount"]
[1731482413252,37.39869467,204.02,203.93,42.30209467]
[1731482413856,37.39869467,204.0,203.93,17.1625]
[1731482414661,37.39869467,204.0,203.93,12.2591]
[1731482414960,37.39869467,204.04,203.95,37.39869467]
[1731482415133,37.39869467,204.04,203.97,37.39869467]
[1731482415334,37.39869467,204.12,204.03,37.39869467]
[1731482415550,37.39869467,204.09,204.01,43.49979467]
[1731482415740,37.39869467,204.09,204.01,48.40139467]
[1731482416037,42.29849467,204.09,204.01,54.55459467]
[1731482416644,42.29849467,204.09,204.01,37.39869467]
[1731482416843,37.39869467,204.05,203.97,37.39869467]
[1731482417036,37.39869467,204.01,203.93,37.39869467]
[1731482417242,37.39869467,203.99,203.93,4.9034]
[1731482417549,37.39869467,203.99,203.91,54.56249467]
[1731482417852,37.39869467,203.97,203.89,37.39869467]
[1731482418153,37.39869467,203.91,203.85,0.3903966]
[1731482418376,37.39869467,203.87,203.85,0.3903966]
[1731482418755,23.876884,203.86,203.85,0.3903966]
[1731482419563,23.976884,203.86,203.85,0.3903966]
[1731482419752,0.1,203.84,203.72,37.39869467]
[1731482419960,37.39869467,203.78,203.7,37.39869467]
[1731482421373,37.39869467,203.78,203.7,42.30759467]
[1731482422679,37.39869467,203.8,203.72,37.39869467]
[1731482422869,37.39869467,203.82,203.72,37.39869467]
[1731482423073,42.30509467,203.82,203.72,37.39869467]
[1731482423266,37.39869467,203.82,203.74,37.39869467]
[1731482423580,42.30509467,203.82,203.72,37.39869467]
[1731482423960,0.2,203.86,203.76,37.39869467]
[1731482423961,37.39869467,203.84,203.76,37.39869467]
[1731482424170,42.30459467,203.84,203.76,37.39869467]
[1731482424487,37.39869467,203.8,203.72,37.39869467]
[1731482425067,42.30549467,203.8,203.72,37.39869467]
[1731482425772,37.39869467,203.82,203.72,37.39869467]
[1731482425976,42.30459467,203.84,203.76,37.39869467]
[1731482426864,23.0929495,203.83,203.75,23.0929495]
[1731482427268,23.0929495,203.85,203.77,23.0929495]
[1731482427463,32.02501428,203.9,203.79,23.0929495]
[1731482427464,23.0929495,203.87,203.79,23.0929495]
[1731482427660,23.0929495,203.91,203.81,23.0929495]
[1731482427863,23.0929495,203.89,203.81,23.0929495]
[1731482428274,23.0929495,203.91,203.81,23.0929495]
[1731482428876,23.0929495,203.91,203.82,4.9062]
[1731482429073,23.0929495,203.94,203.85,23.0929495]
[1731482429878,23.0929495,203.9,203.83,23.0929495]
[1731482430081,23.0929495,203.94,203.85,23.0929495]
[1731482430278,4.903,203.96,203.87,23.0929495]
[1731482430279,27.9959495,203.96,203.87,23.0929495]
[1731482431086,27.9959495,203.96,203.82,348.8971]
[1731482431087,23.0929495,203.92,203.84,4.9056]
[1731482431392,23.0929495,203.92,203.83,23.0929495]
[1731482431592,23.0929495,203.92,203.85,23.0929495]
[1731482431882,23.0929495,203.94,203.85,23.0929495]
[1731482432388,23.0929495,203.96,203.89,23.0929495]
[1731482432596,23.0929495,204.02,203.93,23.0929495]
[1731482432797,23.0929495,204.02,203.95,23.0929495]
[1731482432981,23.0929495,203.96,203.88,6.2183]
[1731482433297,23.0929495,203.94,203.85,23.0929495]
[1731482433687,23.0929495,203.94,203.87,23.0929495]
[1731482434375,27.9965495,203.94,203.85,23.0929495]
[1731482435389,27.9965495,203.94,203.87,23.0929495]
[1731482436173,23.0929495,203.92,203.83,23.0929495]
[1731482436380,23.0929495,203.92,203.85,23.0929495]
[1731482437385,23.0929495,203.94,203.85,23.0929495]
[1731482438083,23.0929495,203.94,203.85,27.9983495]
[1731482438698,23.0929495,203.94,203.85,40.2622495]
[1731482439400,23.0929495,203.96,203.87,23.0929495]
[1731482440491,4.9031,203.95,203.87,27.9978495]
[1731482440690,23.0929495,203.96,203.87,40.2605495]
[1731482440884,27.9958495,203.96,203.87,40.2605495]
[1731482442501,27.9958495,203.96,203.87,35.3556495]
[1731482442695,23.0929495,203.92,203.85,23.0929495]
[1731482442890,23.0929495,203.92,203.83,23.0929495]
[1731482443084,23.0929495,203.92,203.85,23.0929495]
[1731482443904,23.0929495,203.96,203.87,23.0929495]
[1731482444891,27.9958495,203.96,203.87,40.2605495]
[1731482445993,23.0929495,203.94,203.87,35.3556495]
[1731482446419,23.0929495,203.94,203.87,40.2606495]
[1731482447606,4.8988,204.13,203.95,0.1]
[1731482447810,23.0929495,204.11,204.02,23.0929495]
[1731482448109,23.0929495,204.11,203.9,23.0929495]
[1731482448110,23.0929495,204.05,203.95,23.0929495]
[1731482448583,7.17918688,204.13,204.03,23.0929495]
[1731482448782,23.0929495,204.12,204.03,23.0929495]
[1731482448999,23.0929495,204.06,203.99,23.0929495]
[1731482449205,0.1,204.1,203.97,23.0929495]
[1731482449206,23.0929495,204.04,203.97,23.0929495]
[1731482449588,4.9012,204.03,203.97,23.0929495]
[1731482450404,23.0929495,204.02,203.95,23.0929495]
[1731482450705,23.0929495,204.02,203.93,23.0929495]
[1731482451201,23.0929495,204.0,203.93,23.0929495]
[1731482451506,4.9022,203.99,203.91,35.3532495]
[1731482451699,4.9022,203.99,203.91,40.2573495]
[1731482452201,4.9022,203.99,203.91,35.3532495]
[1731482452785,23.0929495,203.98,203.91,23.0929495]
[1731482452985,23.0929495,203.98,203.89,23.0929495]
[1731482453604,4.9026,203.97,203.89,23.0929495]
[1731482453796,23.0929495,203.96,203.87,23.0929495]
[1731482455407,23.0929495,203.96,203.83,6.1787]
[1731482455408,23.0929495,203.94,203.85,23.0929495]
[1731482455588,23.0929495,203.92,203.85,23.0929495]
[1731482456816,29.2382495,203.96,203.89,23.0929495]
[1731482457125,23.0929495,203.92,203.85,23.0929495]
[1731482457717,23.0929495,203.92,203.76,24.5382]
[1731482457718,23.0929495,203.88,203.79,23.0929495]
[1731482457898,23.0929495,203.83,203.76,12.2687]
[1731482458718,23.0929495,203.83,203.76,17.1764]
[1731482459098,23.0929495,203.81,203.73,23.0929495]
[1731482459324,23.0929495,203.79,203.72,4.9086]
[1731482459499,4.9062,203.83,203.72,4.9086]
[1731482459500,23.0929495,203.81,203.73,23.0929495]
[1731482460414,27.9985495,203.85,203.77,23.0929495]
[1731482460609,4.9056,203.85,203.79,23.0929495]
[1731482460809,4.9056,203.85,203.77,28.0002495]
[1731482460810,27.9985495,203.85,203.77,28.0002495]
[1731482461116,23.0929495,203.81,203.73,23.0929495]
[1731482461419,23.0929495,203.79,203.72,17.1803]
[1731482461617,23.0929495,203.79,203.71,23.0929495]
[1731482461825,23.0929495,203.83,203.75,23.0929495]
[1731482462122,23.0929495,203.85,203.77,23.0929495]
[1731482462301,23.0929495,203.93,203.84,23.0929495]
[1731482462501,23.0929495,203.91,203.84,23.0929495]
[1731482462799,23.0929495,203.85,203.71,17.1812]
[1731482463003,23.0929495,203.81,203.73,23.0929495]
[1731482463204,23.0929495,203.79,203.71,40.2741495]
[1731482463524,23.0929495,203.77,203.69,4.9093]
[1731482463716,23.0929495,203.79,203.71,23.0929495]
[1731482464221,23.0929495,203.81,203.73,23.0929495]
[1731482464399,23.0929495,203.83,203.75,23.0929495]
[1731482464911,27.9995495,203.81,203.74,12.2705]
[1731482465112,27.9991495,203.83,203.74,17.1787]
[1731482465513,23.0929495,203.81,203.74,17.1787]
[1731482466322,23.0929495,203.87,203.79,23.0929495]
[1731482467007,4.9048,203.88,203.81,23.0929495]
[1731482467323,23.0929495,203.91,203.83,23.0929495]
[1731482468407,23.0929495,203.89,203.83,12.2651]
[1731482468601,23.0929495,203.89,203.83,17.1711]
[1731482469202,23.0929495,203.89,203.83,12.2651]
[1731482470016,23.0929495,203.89,203.83,17.1711]
[1731482470227,23.0929495,203.91,203.83,40.2640495]
[1731482470398,0.1,203.99,203.83,40.2640495]
[1731482470399,23.0929495,203.97,203.89,23.0929495]
[1731482470605,4.902,204.0,203.93,23.0929495]
[1731482470807,23.0929495,203.99,203.91,23.0929495]
[1731482471336,6.4785,204.02,203.83,17.1711]
[1731482471337,23.0929495,204.01,203.93,23.0929495]
[1731482471819,23.0929495,203.97,203.89,23.0929495]
[1731482472028,23.0929495,203.99,203.91,23.0929495]
[1731482472216,23.0929495,203.99,203.91,27.9968495]
[1731482472415,4.9021,204.0,203.93,23.0929495]
[1731482473030,23.0929495,204.03,203.95,23.0929495]
[1731482473334,23.0929495,204.07,203.99,23.0929495]
[1731482473509,23.0929495,204.07,203.97,23.0929495]
[1731482473718,23.0929495,204.05,203.97,23.0929495]
[1731482474235,23.0929495,204.01,203.93,23.0929495]
[1731482474548,23.0929495,203.99,203.91,35.3532495]
[1731482474731,23.0929495,203.99,203.91,40.2573495]
[1731482474926,23.0929495,203.99,203.91,35.3532495]
[1731482475117,23.0929495,203.99,203.91,23.0929495]
[1731482475431,23.0929495,203.97,203.89,40.2588495]
[1731482475619,23.0929495,203.99,203.91,23.0929495]
[1731482476337,4.9024,203.98,203.89,40.2588495]
[1731482476724,23.0929495,203.97,203.85,6.3851]
[1731482476921,23.0929495,203.87,203.79,18.4341]
[1731482477131,23.0929495,203.85,203.78,23.0929495]
[1731482477315,23.0929495,203.87,203.78,23.0929495]
[1731482477517,23.0929495,203.89,203.82,23.0929495]
[1731482477720,23.0929495,203.91,203.82,23.0929495]
[1731482477921,23.0929495,203.89,203.82,23.0929495]
[1731482478234,4.9053,203.86,203.78,23.0929495]
[1731482478439,23.0929495,203.85,203.78,23.0929495]
[1731482478638,23.0929495,203.85,203.77,12.2687]
[1731482478823,23.0929495,203.85,203.78,23.0929495]
[1731482479026,23.0929495,203.89,203.8,23.0929495]
[1731482479219,23.0929495,203.89,203.82,23.0929495]
[1731482479423,23.0929495,203.89,203.77,17.1761]
[1731482479424,23.0929495,203.89,203.8,23.0929495]
[1731482479631,23.0929495,203.87,203.78,23.0929495]
[1731482479923,23.0929495,203.85,203.78,23.0929495]
[1731482480327,23.0929495,203.85,203.78,27.9999495]
[1731482480540,23.0929495,203.83,203.74,28.0010495]
[1731482480842,23.0929495,203.85,203.76,23.0929495]
[1731482481221,23.0929495,203.85,203.78,23.0929495]
[1731482481632,23.0929495,203.85,203.76,23.0929495]
[1731482481840,4.9058,203.84,203.76,23.0929495]
[1731482482524,23.0929495,203.81,203.72,23.0929495]
[1731482482736,23.0929495,203.77,203.69,17.1823]
[1731482483931,28.0004495,203.77,203.69,17.1823]
[1731482486346,23.0929495,203.75,203.69,12.273]
[1731482486528,28.0004495,203.77,203.69,12.273]
[1731482487043,23.0929495,203.75,203.69,12.273]
[1731482487348,23.0929495,203.75,203.66,28.0028495]
[1731482487956,4.9075,203.77,203.64,23.0929495]
[1731482487957,23.0929495,203.71,203.64,23.0929495]
[1731482488127,23.0929495,203.71,203.62,34.1162495]
[1731482488327,4.9091,203.7,203.62,34.1162495]
[1731482488744,4.9091,203.7,203.62,28.0038495]
[1731482489046,23.0929495,203.67,203.59,12.279]
[1731482490060,23.0929495,203.67,203.51,0.1]
[1731482490061,23.0929495,203.67,203.54,35.3750495]
[1731482490263,4.9101,203.66,203.55,4.9127]
[1731482491461,4.9101,203.66,203.54,35.3750495]
[1731482491633,4.9101,203.66,203.55,4.9126]
[1731482493243,23.0929495,203.67,203.61,4.9111]
[1731482493448,28.0030495,203.67,203.59,4.9118]
[1731482493664,28.0030495,203.67,203.58,12.2801]
[1731482493845,28.0030495,203.67,203.55,4.9126]
[1731482494156,28.0030495,203.67,203.56,4.9124]
[1731482494462,28.0030495,203.67,203.56,23.0929495]
[1731482494641,28.0030495,203.67,203.58,4.9118]
[1731482494958,28.0030495,203.67,203.59,4.9117]
[1731482495651,23.0929495,203.67,203.58,23.0929495]
[1731482495848,28.0028495,203.67,203.58,23.0929495]
[1731482496366,28.0028495,203.67,203.59,4.9116]
[1731482496859,28.0028495,203.67,203.57,12.2805]
[1731482497232,28.0028495,203.67,203.58,4.9119]
[1731482499861,28.0028495,203.67,203.61,4.9113]
[1731482500053,28.0028495,203.67,203.6,4.9115]
[1731482501959,28.0028495,203.67,203.58,28.0047495]
[1731482502167,28.0028495,203.67,203.58,23.0929495]
[1731482502356,28.0028495,203.67,203.6,4.9115]
[1731482503241,28.0028495,203.67,203.58,4.9119]
[1731482503442,28.0028495,203.67,203.54,23.0929495]
[1731482503756,28.0028495,203.67,203.53,12.2829]
[1731482503757,43.776884,203.66,203.53,40.2889495]
[1731482503949,43.776884,203.66,203.53,17.196]
[1731482505261,43.776884,203.66,203.51,23.0929495]
[1731482505450,43.776884,203.66,203.53,4.9131]
[1731482505648,20.0,203.66,203.55,23.0929495]
[1731482505972,20.0,203.66,203.55,28.0055495]
[1731482506263,20.0,203.66,203.54,12.282]
[1731482506264,43.776884,203.66,203.5,6.4934]
[1731482506443,43.776884,203.66,203.51,23.0929495]
[1731482506646,43.776884,203.66,203.5,6.4934]
[1731482506647,43.776884,203.66,203.53,23.0929495]
[1731482506852,43.776884,203.66,203.5,6.4934]
[1731482507060,43.776884,203.66,203.53,23.0929495]
[1731482507869,43.876884,203.66,203.53,23.0929495]
[1731482508164,43.876884,203.66,203.52,4.9134]
[1731482508667,43.876884,203.66,203.53,12.2831]
[1731482508850,43.876884,203.66,203.53,17.1963]
[1731482509257,43.876884,203.66,203.53,12.2831]
[1731482510071,43.976884,203.66,203.5,6.4934]
[1731482510262,43.976884,203.66,203.51,4.9137]
[1731482510967,43.976884,203.66,203.52,28.0062495]
[1731482511157,43.876884,203.66,203.52,23.0929495]
[1731482511359,43.976884,203.66,203.52,23.0929495]
[1731482511559,43.976884,203.66,203.65,3e-06]
[1731482511958,43.876884,203.66,203.65,3e-06]
[1731482512265,23.976884,203.63,203.5,6.4934]
[1731482512464,23.0929495,203.55,203.5,6.4934]
[1731482513058,23.0929495,203.53,203.5,6.4934]
[1731482513373,23.0929495,203.51,203.49,15.7569]
[1731482513878,28.0067495,203.51,203.45,6.2345]
[1731482514253,28.0067495,203.51,203.45,11.1496]
[1731482515153,28.0067495,203.51,203.45,6.2345]
[1731482515457,23.0929495,203.49,203.45,6.2345]
[1731482516986,23.0929495,203.49,203.44,0.512703]
[1731482517672,23.0929495,203.47,203.44,0.512703]
[1731482518185,28.0078495,203.47,203.44,0.512703]
[1731482518359,23.0929495,203.45,203.44,0.512703]
[1731482520280,28.0081495,203.45,203.44,0.512703]
[1731482521984,48.0081495,203.45,203.44,0.512703]
[1731482523273,28.0081495,203.45,203.44,0.512703]
[1731482523587,23.0929495,203.45,203.44,0.512703]
[1731482524176,37.204,203.44,203.33,16.332]
[1731482524376,23.0929495,203.36,203.29,6.1796]
[1731482524789,23.0929495,203.4,203.29,6.1796]
[1731482524790,14.50123275,203.35,203.29,6.1796]
[1731482524964,14.50123275,203.31,203.24,6.857403]
[1731482525168,14.50123275,203.28,203.24,0.512703]
[1731482525365,14.50123275,203.26,203.24,0.512703]
[1731482526063,23.776884,203.25,203.24,0.512703]
[1731482526263,14.50123275,203.26,203.24,0.512703]
[1731482526980,23.23387397,203.25,203.24,0.512703]
[1731482527175,23.23387397,203.27,203.24,0.512703]
[1731482527570,23.23387397,203.29,203.24,0.512703]
[1731482527871,23.23387397,203.33,203.26,21.641]
[1731482528258,23.23387397,203.31,203.26,21.641]
[1731482528462,23.23387397,203.29,203.26,21.641]
[1731482528679,23.23387397,203.31,203.26,21.641]
[1731482529868,23.23387397,203.27,203.24,0.512703]
[1731482530075,23.23387397,203.25,203.24,0.512703]
[1731482530595,0.1,203.31,203.24,0.512703]
[1731482530596,23.23387397,203.31,203.24,0.512703]
[1731482530763,23.23387397,203.31,203.24,5.432803]
[1731482532289,23.23387397,203.31,203.24,40.96737697]
[1731482532697,23.23387397,203.29,203.24,0.512703]
[1731482533387,23.23387397,203.33,203.24,23.74657697]
[1731482533592,7.66292095,203.34,203.24,23.74657697]
[1731482533593,7.66292095,203.34,203.26,23.23387397]
[1731482533787,23.23387397,203.29,203.24,0.512703]
[1731482533991,23.23387397,203.31,203.24,0.512703]
[1731482534304,23.23387397,203.29,203.24,0.512703]
[1731482534504,4.918,203.34,203.24,0.512703]
[1731482534505,23.23387397,203.25,203.24,0.512703]
[1731482534883,23.23387397,203.25,203.14,21.3829]
[1731482534884,23.776884,203.24,203.14,16.4603]
[1731482535079,23.23387397,203.18,203.14,16.4603]
[1731482535277,23.23387397,203.2,203.14,16.4603]
[1731482535779,28.15507397,203.2,203.14,16.4603]
[1731482536481,23.23387397,203.16,203.11,6.3224]
[1731482537075,23.23387397,203.16,203.09,16.1221]
[1731482537579,4.9212,203.2,203.07,11.5057]
[1731482537580,23.23387397,203.14,203.07,6.5814]
[1731482537784,23.23387397,203.12,203.07,6.5814]
[1731482538497,23.23387397,203.16,203.08,23.23387397]
[1731482538677,23.23387397,203.18,203.08,23.23387397]
[1731482539600,4.9219,203.17,203.08,28.15787397]
[1731482539774,4.9219,203.17,203.08,40.46827397]
[1731482541580,23.23387397,203.16,203.08,40.46827397]
[1731482542789,23.23387397,203.16,203.08,17.2344]
[1731482543103,23.23387397,203.16,203.07,6.5814]
[1731482543104,23.23387397,203.12,203.07,6.5814]
[1731482543779,23.23387397,203.08,203.03,0.512703]
[1731482543995,23.23387397,203.06,203.03,0.512703]
[1731482544785,30.88228973,203.06,203.03,0.512703]
[1731482545001,35.80698973,203.06,203.03,0.512703]
[1731482545791,23.23387397,203.04,203.03,0.512703]
[1731482546709,30.88228973,203.06,203.03,0.512703]
[1731482546887,7.64841576,203.06,203.03,0.512703]
[1731482547603,12.57311576,203.06,203.03,0.512703]
[1731482548311,7.64841576,203.06,203.03,5.437903]
[1731482548498,7.64841576,203.06,203.03,0.512703]
[1731482549808,35.80708973,203.06,203.03,0.512703]
[1731482550302,12.57321576,203.06,203.03,0.512703]
[1731482551086,35.80708973,203.06,203.03,0.512703]
[1731482552119,29.52937397,203.04,203.03,0.512703]
[1731482552290,23.776884,203.03,202.85,6.4025]
[1731482552619,23.23387397,202.95,202.85,29.63637397]
[1731482553121,23.23387397,203.0,202.85,29.63637397]
[1731482553122,23.23387397,202.93,202.85,6.4025]
[1731482553610,23.23387397,202.93,202.85,11.3321]
[1731482554024,23.23387397,202.89,202.83,15.7943]
[1731482554526,23.23387397,202.89,202.83,33.0499]
[1731482555216,23.23387397,202.91,202.83,33.0499]
[1731482555414,23.23387397,202.89,202.83,17.2556]
[1731482556617,23.23387397,202.89,202.83,12.3255]
[1731482556824,23.23387397,202.89,202.82,0.512703]
[1731482556825,28.16267397,202.89,202.82,0.512703]
[1731482557011,23.23387397,202.87,202.82,0.512703]
[1731482557220,23.23387397,202.85,202.82,0.512703]
[1731482557604,23.23387397,202.83,202.82,0.512703]
[1731482557898,23.23387397,202.85,202.82,0.512703]
[1731482558319,23.23387397,202.89,202.82,5.443103]
[1731482558713,23.23387397,202.91,202.83,23.23387397]
[1731482558922,23.23387397,202.93,202.85,23.23387397]
[1731482559509,7.64775532,202.96,202.89,23.23387397]
[1731482560120,23.23387397,202.95,202.87,23.23387397]
[1731482560629,23.23387397,202.95,202.85,23.23387397]
[1731482561038,23.23387397,202.95,202.86,17.2532]
[1731482561335,23.23387397,202.93,202.86,17.2532]
[1731482561638,23.23387397,202.95,202.87,23.23387397]
[1731482562235,7.64775532,202.96,202.9,23.23387397]
[1731482562533,7.64775532,202.96,202.92,23.23387397]
[1731482562918,7.64775532,202.96,202.93,4.9278]
[1731482563441,7.64775532,202.96,202.92,40.48187397]
[1731482563618,23.23387397,203.03,202.94,23.23387397]
[1731482563818,7.63319446,203.01,202.95,15.1168]
[1731482564851,7.63319446,203.01,202.96,23.23387397]
[1731482565024,7.63319446,203.01,202.95,32.3622]
[1731482565225,19.690354,203.15,203.0,52.51644794]
[1731482565421,23.23387397,203.18,203.09,23.23387397]
[1731482565740,23.23387397,203.16,203.07,23.23387397]
[1731482566122,7.65078584,203.15,203.09,23.23387397]
[1731482566436,23.23387397,203.13,203.04,23.23387397]
[1731482566946,23.23387397,203.13,203.05,17.237]
[1731482567123,23.23387397,203.13,203.06,23.23387397]
[1731482567321,7.65078584,203.15,203.12,23.23387397]
[1731482567633,23.23387397,203.21,203.12,23.23387397]
[1731482568941,23.23387397,203.21,203.13,4.9229]
[1731482569114,23.23387397,203.21,203.12,23.23387397]
[1731482569313,23.23387397,203.17,203.11,12.3081]
[1731482569537,23.23387397,203.17,203.09,4.9238]
[1731482570321,23.776884,203.13,203.04,23.23387397]
[1731482570520,23.23387397,203.14,203.06,23.23387397]
[1731482570938,23.23387397,203.14,203.07,4.9244]
[1731482571147,28.15667397,203.14,203.06,23.23387397]
[1731482571438,23.776884,203.13,203.06,23.23387397]
[1731482572231,23.776884,203.13,203.06,28.15837397]
[1731482572615,23.23387397,203.14,203.06,28.15837397]
[1731482572616,23.23387397,203.16,203.08,23.23387397]
[1731482572820,28.699484,203.15,203.08,23.23387397]
[1731482573019,28.699484,203.15,203.06,12.3116]
[1731482573020,23.776884,203.15,203.07,4.9243]
[1731482573244,28.699484,203.15,203.07,17.2353]
[1731482573852,23.776884,203.15,203.07,17.2353]
[1731482574020,23.23387397,203.14,203.07,12.311]
[1731482574341,23.23387397,203.14,203.07,17.2354]
[1731482574550,23.23387397,203.18,203.1,23.23387397]
[1731482574724,30.42473902,203.22,203.14,23.23387397]
[1731482574928,28.15477397,203.22,203.14,23.23387397]
[1731482575444,23.23387397,203.22,203.14,23.23387397]
[1731482576450,7.65982434,203.24,203.2,23.23387397]
[1731482576618,12.58032434,203.24,203.18,23.23387397]
[1731482577032,7.65982434,203.24,203.18,23.23387397]
[1731482577625,23.776884,203.23,203.18,23.23387397]
[1731482578444,43.776884,203.18,203.05,23.23387397]
[1731482578624,23.23387397,203.14,203.05,23.23387397]
[1731482579037,28.15677397,203.14,203.05,28.15847397]
[1731482579245,71.93255797,203.18,203.09,23.23387397]
[1731482579420,23.23387397,203.2,203.11,23.23387397]
[1731482579619,7.66755236,203.18,203.15,23.23387397]
[1731482579844,23.23387397,203.24,203.17,23.23387397]
[1731482579845,28.15427397,203.24,203.17,23.23387397]
[1731482580050,12.58661409,203.24,203.17,23.23387397]
[1731482580329,7.66621409,203.24,203.17,23.23387397]
[1731482580523,7.66621409,203.24,203.15,6.3073]
[1731482580524,7.66621409,203.24,203.19,23.23387397]
[1731482581152,7.66621409,203.24,203.19,28.15527397]
[1731482581831,7.66621409,203.24,203.19,23.23387397]
[1731482582035,7.66621409,203.24,203.23,23.23387397]
[1731482582221,28.15237397,203.32,203.23,23.23387397]
[1731482582427,7.65838113,203.31,203.25,23.23387397]
[1731482583037,7.65838113,203.31,203.27,23.23387397]
[1731482583547,4.9175,203.36,203.29,23.23387397]
[1731482583749,17.37273733,203.4,203.29,23.23387397]
[1731482583750,4.9144,203.48,203.35,23.23387397]
[1731482584043,0.1,203.49,203.3,29.65077397]
[1731482584044,19.663448,203.46,203.4,23.23387397]
[1731482584244,23.23387397,203.51,203.42,23.23387397]
[1731482584456,4.9136,203.52,203.44,23.23387397]
[1731482584662,23.23387397,203.51,203.42,23.23387397]
[1731482584823,23.23387397,203.45,203.36,23.23387397]
[1731482585024,23.23387397,203.47,203.38,23.23387397]
[1731482585246,7.64784669,203.52,203.44,23.23387397]
[1731482585453,7.64784669,203.52,203.48,23.23387397]
[1731482585748,0.512703,203.54,203.5,23.23387397]
[1731482586157,20.168664,203.54,203.5,23.23387397]
[1731482586342,0.512703,203.54,203.5,23.23387397]
[1731482586530,5.35069598,203.56,203.5,23.23387397]
[1731482586730,5.35069598,203.56,203.45,6.4169]
[1731482586731,37.61933411,203.58,203.49,37.61933411]
[1731482587026,19.650043,203.61,203.49,37.61933411]
[1731482587027,37.61933411,203.56,203.49,37.61933411]
[1731482587232,42.53203411,203.56,203.49,37.61933411]
[1731482587549,37.61933411,203.54,203.45,37.61933411]
[1731482587754,37.61933411,203.52,203.45,37.61933411]
[1731482587936,37.61933411,203.52,203.44,12.2885]
[1731482588139,23.776884,203.51,203.44,12.2885]
[1731482588443,23.776884,203.51,203.43,37.61933411]
[1731482588837,23.776884,203.51,203.44,4.9154]
[1731482589152,5.0127,203.56,203.44,4.9154]
[1731482589153,37.61933411,203.56,203.49,37.61933411]
[1731482589353,37.61933411,203.58,203.49,37.61933411]
[1731482589730,42.53083411,203.6,203.51,37.61933411]
[1731482589923,7.68190462,203.62,203.49,17.1997]
[1731482589924,45.30123873,203.62,203.53,37.61933411]
[1731482590536,7.68190462,203.62,203.55,37.61933411]
[1731482591855,37.61933411,203.6,203.51,37.61933411]
[1731482592882,23.776884,203.59,203.51,37.61933411]
[1731482593260,50.21233873,203.62,203.53,37.61933411]
[1731482593774,7.68190462,203.62,203.55,37.61933411]
[1731482594255,7.68190462,203.62,203.57,37.61933411]
[1731482594974,37.61933411,203.66,203.59,37.61933411]
[1731482595173,4.91,203.67,203.59,37.61933411]
[1731482596180,61.39621811,203.66,203.57,49.89973411]
[1731482596475,61.39621811,203.66,203.57,54.81203411]
[1731482596850,45.29668498,203.68,203.59,37.61933411]
[1731482597059,23.776884,203.67,203.59,37.61933411]
[1731482597669,37.61933411,203.72,203.63,37.61933411]
[1731482597877,19.639385,203.72,203.65,37.61933411]
[1731482598173,0.512703,203.75,203.69,37.61933411]
[1731482598475,0.512703,203.75,203.66,17.1854]
[1731482598476,0.512703,203.75,203.73,37.61933411]
[1731482599972,0.512703,203.75,203.71,37.61933411]
[1731482600176,0.512703,203.75,203.73,37.61933411]
[1731482600856,0.512703,203.75,203.73,349.71933411]
[1731482601184,37.61933411,203.94,203.76,0.2]
[1731482601481,42.52283411,203.94,203.86,37.61933411]
[1731482602283,50.190979,203.94,203.84,37.61933411]
[1731482602580,50.190979,203.94,203.86,37.61933411]
[1731482603579,50.190979,203.94,203.84,37.61933411]
[1731482603969,23.776884,203.93,203.84,37.61933411]
[1731482604167,23.776884,203.93,203.86,37.61933411]
[1731482604477,0.512703,203.96,203.9,37.61933411]
[1731482604978,5.39287167,203.96,203.88,37.61933411]
[1731482605180,5.39287167,203.96,203.83,6.6448]
[1731482605181,37.61933411,203.95,203.86,37.61933411]
[1731482605478,37.61933411,203.95,203.88,37.61933411]
[1731482605684,0.48977167,203.96,203.88,37.61933411]
[1731482605876,0.48977167,203.96,203.9,37.61933411]
[1731482606103,0.48977167,203.96,203.88,37.61933411]
[1731482606295,5.39277167,203.96,203.88,37.61933411]
[1731482606491,5.39277167,203.96,203.84,17.1703]
[1731482606492,0.48977167,203.96,203.9,37.61933411]
[1731482606691,0.48977167,203.96,203.84,17.1703]
[1731482606692,0.48977167,203.96,203.92,37.61933411]
[1731482607204,0.48977167,203.96,203.94,37.61933411]
[1731482607894,0.48977167,203.96,203.94,42.52253411]
[1731482608202,0.48977167,203.96,203.94,37.61933411]
[1731482608992,0.48977167,203.96,203.92,37.61933411]
[1731482609506,0.48977167,203.96,203.94,37.61933411]
[1731482610407,0.48977167,203.96,203.95,4.9031]
[1731482612082,0.48977167,203.96,203.95,316.9031]
[1731482612500,0.48977167,203.96,203.94,37.61933411]
[1731482612902,0.48977167,203.96,203.94,42.52253411]
[1731482614014,0.48977167,203.96,203.94,37.61933411]
[1731482614309,0.48977167,203.96,203.95,23.776884]
[1731482614512,0.48977167,203.96,203.95,83.19581811]
[1731482614689,4.8997,204.1,203.97,0.1]